fUST/lending_fUST_20250814
["ID","MTS","AMOUNT","RATE_DAILY","PERIOD"]
[379088116,1755120660986,-460.0,0.00020273,2]
[379088117,1755120660995,-187.86048,0.00020273,2]
[379088118,1755120661006,-187.86048,0.00020273,2]
[379088119,1755120661016,-460.0,0.00020273,2]
[379088120,1755120661025,-187.86048,0.00020273,2]
[379088121,1755120661035,-187.860486,0.00020273,2]
[379088122,1755120661046,-460.0,0.00020273,2]
[379088123,1755120661055,-1089.62,0.00020273,2]
[379088124,1755120661065,-460.0,0.00020273,2]
[379088125,1755120661075,-460.0,0.00020273,2]
[379088126,1755120661084,-460.0,0.00020273,2]
[379088127,1755120661094,-460.0,0.00020273,2]
[379088128,1755120661103,-460.0,0.00020273,2]
[379088129,1755120661113,-596.48,0.00020273,2]
[379088130,1755120661123,-460.0,0.00020273,2]
[379088131,1755120661133,-460.0,0.00020273,2]
[379088132,1755120661143,-460.0,0.00020273,2]
[379088133,1755120661152,-460.0,0.00020273,2]
[379088134,1755120661162,-460.0,0.00020273,2]
[379088135,1755120661171,-460.0,0.00020273,2]
[379088136,1755120661181,-460.0,0.00020273,2]
[379088137,1755120661190,-460.0,0.00020273,2]
[379088138,1755120661200,-460.0,0.00020273,2]
[379088139,1755120661210,-460.0,0.00020273,2]
[379088140,1755120661220,-460.0,0.00020273,2]
[379088141,1755120661230,-460.0,0.00020273,2]
[379088142,1755120661239,-460.0,0.00020273,2]
[379088143,1755120661249,-460.0,0.00020273,2]
[379088144,1755120661258,-460.0,0.00020273,2]
[379088145,1755120661268,-460.0,0.00020273,2]
[379088146,1755120661277,-534.02,0.00020273,2]
[379088147,1755120661287,-430.49129169,0.00020273,2]
[379088148,1755120661298,-758.95,0.00020273,2]
[379088149,1755120661307,-460.0,0.00020273,2]
[379088150,1755120661317,-460.0,0.00020273,2]
[379088151,1755120661326,-787.89,0.00020273,2]
[379088152,1755120661335,-460.0,0.00020273,2]
[379088153,1755120661345,-300.578606,0.00020273,2]
[379088154,1755120661354,-460.0,0.00020273,2]
[379088155,1755120661364,-460.0,0.00020273,2]
[379088156,1755120661374,-460.0,0.00020273,2]
[379088157,1755120661384,-689.48,0.00020273,2]
[379088158,1755120661394,-460.0,0.00020273,2]
[379088159,1755120661403,-460.0,0.00020273,2]
[379088160,1755120661413,-739.71,0.00020273,2]
[379088161,1755120661423,-5017.5,0.00020273,2]
[379088162,1755120661434,-460.0,0.00020273,2]
[379088163,1755120661443,-768.76,0.00020273,2]
[379088164,1755120661453,-487.53304859,0.00020273,2]
[379088165,1755120661463,-460.0,0.00020273,2]
[379088166,1755120661472,-460.0,0.00020273,2]
[379088167,1755120661482,-1212.74,0.00020273,2]
[379088168,1755120661492,-460.0,0.00020273,2]
[379088169,1755120661505,-460.0,0.00020273,2]
[379088170,1755120661514,-276.540064,0.00020273,2]
[379088171,1755120661524,-276.540064,0.00020273,2]
[379088172,1755120661534,-729.09,0.00020273,2]
[379088173,1755120661544,-460.0,0.00020273,2]
[379088174,1755120661554,-460.0,0.00020273,2]
[379088175,1755120661564,-276.540064,0.00020273,2]
[379088176,1755120661574,-276.540067,0.00020273,2]
[379088177,1755120661584,-460.0,0.00020273,2]
[379088178,1755120661593,-460.0,0.00020273,2]
[379088179,1755120661603,-538.97127199,0.00020273,2]
[379088180,1755120661613,-1645.21,0.00020273,2]
[379088181,1755120661623,-460.0,0.00020273,2]
[379088182,1755120661632,-354.77894565,0.00020273,2]
[379088183,1755120661642,-460.0,0.00020273,2]
[379088184,1755120661652,-460.0,0.00020273,2]
[379088185,1755120661662,-1214.61,0.00020273,2]
[379088186,1755120661672,-980.24,0.00020273,2]
[379088187,1755120661683,-460.0,0.00020273,2]
[379088188,1755120661693,-460.0,0.00020273,2]
[379088189,1755120661702,-460.0,0.00020273,2]
[379088190,1755120661712,-969.79,0.00020273,2]
[379088191,1755120661721,-958.19,0.00020273,2]
[379088192,1755120661731,-460.0,0.00020273,2]
[379088193,1755120661740,-460.0,0.00020273,2]
[379088194,1755120661751,-460.0,0.00020273,2]
[379088195,1755120661760,-4702.07,0.00020273,2]
[379088196,1755120661771,-1283.08,0.00020273,2]
[379088197,1755120661781,-865.2,0.00020273,2]
[379088198,1755120661791,-460.0,0.00020273,2]
[379088199,1755120661801,-460.0,0.00020273,2]
[379088200,1755120661812,-460.0,0.00020273,2]
[379088201,1755120661822,-460.0,0.00020273,2]
[379088202,1755120661832,-460.0,0.00020273,2]
[379088203,1755120661842,-460.0,0.00020273,2]
[379088204,1755120661852,-1687.45,0.00020273,2]
[379088205,1755120661863,-592.18,0.00020273,2]
[379088206,1755120661873,-460.0,0.00020273,2]
[379088207,1755120661882,-460.0,0.00020273,2]
[379088208,1755120661891,-460.0,0.00020273,2]
[379088209,1755120661901,-1024.21,0.00020273,2]
[379088210,1755120661911,-1090.38,0.00020273,2]
[379088211,1755120661921,-1999.28,0.00020273,2]
[379088212,1755120661932,-460.0,0.00020273,2]
[379088214,1755120661941,-151.0,0.00020273,2]
[379088215,1755120661950,-186.316066,0.00020273,2]
[379088216,1755120661960,-460.0,0.00020273,2]
[379088217,1755120661969,-1005.99,0.00020273,2]
[379088218,1755120661977,-460.0,0.00020273,2]
[379088219,1755120661987,-460.0,0.00020273,2]
[379088220,1755120661999,-692.98,0.00020273,2]
[379088222,1755120662008,-578.85,0.00020273,2]
[379088224,1755120662017,-460.0,0.00020273,2]
[379088226,1755120662027,-2399.89,0.00020273,2]
[379088227,1755120662036,-460.0,0.00020273,2]
[379088228,1755120662046,-460.0,0.00020273,2]
[379088229,1755120662056,-460.0,0.00020273,2]
[379088230,1755120662068,-581.47,0.00020273,2]
[379088231,1755120662078,-460.0,0.00020273,2]
[379088232,1755120662088,-2501.72,0.00020273,2]
[379088233,1755120662098,-844.53,0.00020273,2]
[379088235,1755120662107,-460.0,0.00020273,2]
[379088237,1755120662116,-460.0,0.00020273,2]
[379088238,1755120662126,-460.0,0.00020273,2]
[379088239,1755120662136,-460.0,0.00020273,2]
[379088240,1755120662146,-460.0,0.00020273,2]
[379088241,1755120662155,-460.0,0.00020273,2]
[379088242,1755120662165,-504.67,0.00020273,2]
[379088243,1755120662175,-617.05,0.00020273,2]
[379088244,1755120662185,-671.29,0.00020273,2]
[379088245,1755120662195,-1399.207751,0.00020273,2]
[379088246,1755120662205,-682.25,0.00020273,2]
[379088247,1755120662216,-891.38,0.00020273,2]
[379088248,1755120662226,-522.89,0.00020273,2]
[379088249,1755120662235,-1399.207751,0.00020273,2]
[379088250,1755120662246,-1399.207751,0.00020273,2]
[379088251,1755120662260,-1137.52816421,0.00020273,2]
[379088276,1755120764193,392.755682,0.00013699,2]
[379088302,1755121083593,24900.0,0.00018132,2]
[379088303,1755121181679,2080.58084842,0.00025999,120]
[379088305,1755121481804,168.6489485,0.00018136,2]
[379088307,1755121662539,2420.08544357,0.00018307,2]
[379088308,1755121810118,436.699983,0.00013699,2]
[379088353,1755121832695,-183.04912558,0.00018428,2]
[379088354,1755121832705,-192.11113562,0.00018878,2]
[379088355,1755121832714,-96.64858514,0.000189,2]
[379088356,1755121832773,-849.24541962,0.000189,2]
[379088357,1755121832785,-459.95241601,0.000189,2]
[379088358,1755121832794,-258.2745097,0.00018978,2]
[379088359,1755121832816,-633.30864419,0.00018978,2]
[379088360,1755121832825,-192.11113561,0.00018978,2]
[379088361,1755121832834,-300.0,0.00018998,2]
[379088362,1755121832844,-300.0,0.00018998,2]
[379088363,1755121832854,-1200.0,0.00018998,2]
[379088364,1755121832866,-300.0,0.00018998,2]
[379088365,1755121832875,-52.69704472,0.00018999,2]
[379088613,1755121838837,-156.98781249,0.00018999,2]
[379088614,1755121838847,-152.40134819,0.00018999,2]
[379088615,1755121838859,-147091.95219991,0.00019,2]
[379088616,1755121838869,-3863.82236443,0.00019078,2]
[379088618,1755121838879,-500.0,0.00019173,2]
[379088620,1755121838888,-431.16919614,0.00019173,2]
[379088621,1755121838898,-7278.84983837,0.00019173,2]
[379088623,1755121838907,-500.0,0.00019173,2]
[379088625,1755121838916,-500.0,0.00019177,2]
[379088627,1755121838926,-500.0,0.00019177,2]
[379088629,1755121838936,-500.0,0.00019177,2]
[379088631,1755121838946,-612.69499027,0.00019177,2]
[379088633,1755121838956,-500.0,0.00019177,2]
[379088635,1755121838965,-500.0,0.00019177,2]
[379088637,1755121838975,-500.0,0.00019177,2]
[379088639,1755121838985,-500.0,0.00019177,2]
[379088641,1755121838994,-314.66651881,0.00019178,2]
[379088643,1755121839004,-460.0,0.00019178,2]
[379088645,1755121839013,-460.0,0.00019178,2]
[379088647,1755121839022,-460.0,0.00019178,2]
[379088649,1755121839032,-460.0,0.00019178,2]
[379088651,1755121839041,-266.36265958,0.00019178,2]
[379088653,1755121839050,-460.0,0.00019178,2]
[379088655,1755121839059,-460.0,0.00019178,2]
[379088657,1755121839068,-264.83628529,0.00019178,2]
[379088659,1755121839078,-460.0,0.00019178,2]
[379088660,1755121839087,-460.0,0.00019178,2]
[379088662,1755121839096,-460.0,0.00019178,2]
[379088664,1755121839105,-460.0,0.00019178,2]
[379088666,1755121839114,-460.0,0.00019178,2]
[379088668,1755121839123,-460.0,0.00019178,2]
[379088670,1755121839133,-460.0,0.00019178,2]
[379088672,1755121839142,-554.68,0.00019178,2]
[379088674,1755121839151,-460.0,0.00019178,2]
[379088675,1755121839160,-460.0,0.00019178,2]
[379088677,1755121839170,-460.0,0.00019178,2]
[379088678,1755121839179,-460.0,0.00019178,2]
[379088679,1755121839189,-460.0,0.00019178,2]
[379088681,1755121839199,-460.0,0.00019178,2]
[379088683,1755121839208,-460.0,0.00019178,2]
[379088685,1755121839218,-460.0,0.00019178,2]
[379088687,1755121839227,-460.0,0.00019178,2]
[379088689,1755121839238,-460.0,0.00019178,2]
[379088691,1755121839247,-460.0,0.00019178,2]
[379088693,1755121839256,-460.0,0.00019178,2]
[379088694,1755121839266,-460.0,0.00019178,2]
[379088695,1755121839276,-460.06541847,0.00019178,2]
[379088696,1755121839285,-460.0,0.00019178,2]
[379088697,1755121839294,-789.24,0.00019178,2]
[379088698,1755121839303,-470.26,0.00019178,2]
[379088699,1755121839313,-460.0,0.00019178,2]
[379088700,1755121839323,-460.0,0.00019178,2]
[379088701,1755121839332,-460.0,0.00019178,2]
[379088702,1755121839341,-460.0,0.00019178,2]
[379088704,1755121839350,-460.0,0.00019178,2]
[379088705,1755121839359,-460.0,0.00019178,2]
[379088707,1755121839368,-719.48,0.00019178,2]
[379088709,1755121839378,-460.0,0.00019178,2]
[379088711,1755121839387,-470.2,0.00019178,2]
[379088713,1755121839396,-460.0,0.00019178,2]
[379088715,1755121839405,-539.01047851,0.00019178,2]
[379088717,1755121839415,-460.0,0.00019178,2]
[379088719,1755121839424,-460.0,0.00019178,2]
[379088720,1755121839433,-460.0,0.00019178,2]
[379088722,1755121839442,-460.0,0.00019178,2]
[379088723,1755121839451,-230.46860468,0.00019178,2]
[379088724,1755121839461,-460.0,0.00019178,2]
[379088725,1755121839470,-1048.95,0.00019178,2]
[379088726,1755121839479,-460.0,0.00019178,2]
[379088727,1755121839489,-460.0,0.00019178,2]
[379088728,1755121839498,-460.0,0.00019178,2]
[379088729,1755121839507,-460.0,0.00019178,2]
[379088730,1755121839517,-460.0,0.00019178,2]
[379088731,1755121839526,-460.0,0.00019178,2]
[379088732,1755121839535,-460.0,0.00019178,2]
[379088733,1755121839544,-460.0,0.00019178,2]
[379088734,1755121839553,-460.0,0.00019178,2]
[379088735,1755121839562,-460.0,0.00019178,2]
[379088736,1755121839571,-460.0,0.00019178,2]
[379088737,1755121839581,-460.0,0.00019178,2]
[379088738,1755121839590,-460.0,0.00019178,2]
[379088739,1755121839599,-460.0,0.00019178,2]
[379088740,1755121839609,-460.0,0.00019178,2]
[379088741,1755121839618,-460.0,0.00019178,2]
[379088742,1755121839635,-460.0,0.00019178,2]
[379088743,1755121839648,-460.0,0.00019178,2]
[379088744,1755121839658,-460.0,0.00019178,2]
[379088745,1755121839668,-460.0,0.00019178,2]
[379088746,1755121839678,-460.0,0.00019178,2]
[379088747,1755121839687,-460.0,0.00019178,2]
[379088748,1755121839697,-460.0,0.00019178,2]
[379088749,1755121839707,-460.0,0.00019178,2]
[379088750,1755121839716,-460.0,0.00019178,2]
[379088751,1755121839726,-460.0,0.00019178,2]
[379088752,1755121839736,-460.0,0.00019178,2]
[379088753,1755121839747,-460.0,0.00019178,2]
[379088754,1755121839757,-460.0,0.00019178,2]
[379088755,1755121839766,-460.0,0.00019178,2]
[379088757,1755121839776,-460.0,0.00019178,2]
[379088759,1755121839786,-460.0,0.00019178,2]
[379088760,1755121839796,-460.0,0.00019178,2]
[379088761,1755121839806,-460.0,0.00019178,2]
[379088762,1755121839816,-460.0,0.00019178,2]
[379088763,1755121839826,-460.0,0.00019178,2]
[379088764,1755121839836,-460.0,0.00019178,2]
[379088765,1755121839846,-460.0,0.00019178,2]
[379088766,1755121839857,-460.0,0.00019178,2]
[379088767,1755121839868,-460.0,0.00019178,2]
[379088768,1755121839878,-460.0,0.00019178,2]
[379088769,1755121839888,-460.0,0.00019178,2]
[379088770,1755121839899,-460.0,0.00019178,2]
[379088771,1755121839908,-460.0,0.00019178,2]
[379088773,1755121839918,-474.13724685,0.00019178,2]
[379088775,1755121839929,-460.0,0.00019178,2]
[379088777,1755121839940,-460.0,0.00019178,2]
[379088779,1755121839950,-460.0,0.00019178,2]
[379088781,1755121839960,-460.0,0.00019178,2]
[379088783,1755121839971,-569.08203448,0.00019178,2]
[379088786,1755121839982,-460.0,0.00019178,2]
[379088788,1755121839991,-460.0,0.00019178,2]
[379088790,1755121840002,-460.0,0.00019178,2]
[379088792,1755121840011,-604.32,0.00019178,2]
[379088794,1755121840022,-462.67232185,0.00019178,2]
[379088796,1755121840032,-460.0,0.00019178,2]
[379088798,1755121840042,-460.0,0.00019178,2]
[379088800,1755121840051,-579.1019817,0.00019178,2]
[379088801,1755121840061,-460.0,0.00019178,2]
[379088802,1755121840070,-460.0,0.00019178,2]
[379088803,1755121840080,-460.0,0.00019178,2]
[379088804,1755121840090,-460.0,0.00019178,2]
[379088805,1755121840100,-460.0,0.00019178,2]
[379088806,1755121840109,-448.01068005,0.00019178,2]
[379088807,1755121840119,-460.0,0.00019178,2]
[379088808,1755121840129,-460.0,0.00019178,2]
[379088809,1755121840139,-1585.45,0.00019178,2]
[379088810,1755121840149,-460.0,0.00019178,2]
[379088811,1755121840160,-460.0,0.00019178,2]
[379088812,1755121840170,-460.0,0.00019178,2]
[379088813,1755121840180,-460.0,0.00019178,2]
[379088814,1755121840190,-460.0,0.00019178,2]
[379088815,1755121840200,-460.0,0.00019178,2]
[379088816,1755121840210,-464.28,0.00019178,2]
[379088817,1755121840219,-460.0,0.00019178,2]
[379088818,1755121840229,-632.26,0.00019178,2]
[379088819,1755121840240,-460.0,0.00019178,2]
[379088820,1755121840249,-460.0,0.00019178,2]
[379088821,1755121840259,-499.07,0.00019178,2]
[379088822,1755121840268,-460.0,0.00019178,2]
[379088823,1755121840278,-460.0,0.00019178,2]
[379088824,1755121840288,-605.85,0.00019178,2]
[379088825,1755121840298,-460.0,0.00019178,2]
[379088826,1755121840308,-552.399241,0.00019178,2]
[379088827,1755121840317,-460.0,0.00019178,2]
[379088828,1755121840327,-460.0,0.00019178,2]
[379088829,1755121840336,-460.0,0.00019178,2]
[379088830,1755121840346,-596.12,0.00019178,2]
[379088831,1755121840355,-500.0,0.00019178,2]
[379088832,1755121840365,-460.0,0.00019178,2]
[379088833,1755121840375,-809.72,0.00019178,2]
[379088834,1755121840384,-460.0,0.00019178,2]
[379088835,1755121840394,-460.0,0.00019178,2]
[379088836,1755121840404,-492.93,0.00019178,2]
[379088837,1755121840413,-460.0,0.00019178,2]
[379088838,1755121840423,-460.0,0.00019178,2]
[379088839,1755121840432,-460.0,0.00019178,2]
[379088840,1755121840442,-460.0,0.00019178,2]
[379088841,1755121840452,-460.0,0.00019178,2]
[379088842,1755121840462,-460.0,0.00019178,2]
[379088843,1755121840471,-460.0,0.00019178,2]
[379088844,1755121840481,-460.0,0.00019178,2]
[379088845,1755121840491,-1384.1,0.00019178,2]
[379088846,1755121840500,-460.0,0.00019178,2]
[379088847,1755121840510,-460.0,0.00019178,2]
[379088848,1755121840519,-460.0,0.00019178,2]
[379088849,1755121840529,-460.0,0.00019178,2]
[379088850,1755121840539,-460.0,0.00019178,2]
[379088851,1755121840548,-460.0,0.00019178,2]
[379088852,1755121840558,-460.0,0.00019178,2]
[379088853,1755121840567,-621.91,0.00019178,2]
[379088854,1755121840577,-460.0,0.00019178,2]
[379088855,1755121840587,-1135.23,0.00019178,2]
[379088856,1755121840596,-460.0,0.00019178,2]
[379088857,1755121840605,-460.0,0.00019178,2]
[379088858,1755121840615,-460.0,0.00019178,2]
[379088859,1755121840625,-460.0,0.00019178,2]
[379088860,1755121840634,-460.0,0.00019178,2]
[379088861,1755121840644,-460.0,0.00019178,2]
[379088862,1755121840654,-460.0,0.00019178,2]
[379088863,1755121840664,-460.0,0.00019178,2]
[379088864,1755121840673,-460.0,0.00019178,2]
[379088865,1755121840683,-460.0,0.00019178,2]
[379088866,1755121840692,-820.98,0.00019178,2]
[379088867,1755121840702,-460.0,0.00019178,2]
[379088868,1755121840711,-460.0,0.00019178,2]
[379088869,1755121840721,-460.0,0.00019178,2]
[379088870,1755121840730,-460.0,0.00019178,2]
[379088871,1755121840740,-460.0,0.00019178,2]
[379088872,1755121840749,-460.0,0.00019178,2]
[379088873,1755121840759,-460.0,0.00019178,2]
[379088874,1755121840769,-460.0,0.00019178,2]
[379088875,1755121840778,-614.66,0.00019178,2]
[379088876,1755121840788,-879.36,0.00019178,2]
[379088877,1755121840797,-460.0,0.00019178,2]
[379088878,1755121840807,-460.0,0.00019178,2]
[379088879,1755121840816,-460.0,0.00019178,2]
[379088880,1755121840826,-460.0,0.00019178,2]
[379088881,1755121840835,-628.46,0.00019178,2]
[379088882,1755121840844,-460.0,0.00019178,2]
[379088883,1755121840854,-460.0,0.00019178,2]
[379088884,1755121840868,-460.0,0.00019178,2]
[379088886,1755121840877,-460.0,0.00019178,2]
[379088887,1755121840887,-460.0,0.00019178,2]
[379088888,1755121840897,-460.0,0.00019178,2]
[379088889,1755121840908,-599.44,0.00019178,2]
[379088890,1755121840918,-460.0,0.00019178,2]
[379088891,1755121840927,-460.0,0.00019178,2]
[379088892,1755121840938,-1057.42,0.00019178,2]
[379088893,1755121840948,-460.0,0.00019178,2]
[379088894,1755121840957,-460.0,0.00019178,2]
[379088895,1755121840967,-460.0,0.00019178,2]
[379088896,1755121840976,-460.0,0.00019178,2]
[379088898,1755121840988,-460.0,0.00019178,2]
[379088900,1755121840997,-460.0,0.00019178,2]
[379088902,1755121841007,-460.0,0.00019178,2]
[379088904,1755121841016,-460.0,0.00019178,2]
[379088906,1755121841026,-400.0,0.00019178,2]
[379088908,1755121841036,-460.0,0.00019178,2]
[379088910,1755121841045,-460.0,0.00019178,2]
[379088912,1755121841056,-460.0,0.00019178,2]
[379088914,1755121841065,-484.03,0.00019178,2]
[379088916,1755121841075,-1348.67,0.00019178,2]
[379088918,1755121841084,-918.27,0.00019178,2]
[379088920,1755121841093,-625.81,0.00019178,2]
[379088922,1755121841103,-460.0,0.00019178,2]
[379088924,1755121841112,-3220.76,0.00019178,2]
[379088926,1755121841121,-460.0,0.00019178,2]
[379088928,1755121841131,-875.9,0.00019178,2]
[379088930,1755121841141,-493.62,0.00019178,2]
[379088932,1755121841151,-460.0,0.00019178,2]
[379088934,1755121841161,-460.0,0.00019178,2]
[379088936,1755121841170,-460.0,0.00019178,2]
[379088938,1755121841179,-460.0,0.00019178,2]
[379088940,1755121841189,-460.0,0.00019178,2]
[379088942,1755121841200,-460.0,0.00019178,2]
[379088944,1755121841209,-460.0,0.00019178,2]
[379088946,1755121841219,-460.0,0.00019178,2]
[379088948,1755121841228,-460.0,0.00019178,2]
[379088950,1755121841249,-460.0,0.00019178,2]
[379088952,1755121841260,-460.0,0.00019178,2]
[379088954,1755121841270,-460.0,0.00019178,2]
[379088957,1755121841288,-2860.19,0.00019178,2]
[379088959,1755121841299,-460.0,0.00019178,2]
[379088961,1755121841310,-788.48,0.00019178,2]
[379088963,1755121841320,-460.0,0.00019178,2]
[379088965,1755121841331,-460.0,0.00019178,2]
[379088967,1755121841341,-460.0,0.00019178,2]
[379088969,1755121841352,-460.0,0.00019178,2]
[379088971,1755121841362,-256.87114949,0.00019178,2]
[379088973,1755121841371,-460.0,0.00019178,2]
[379088975,1755121841382,-460.0,0.00019178,2]
[379088976,1755121841391,-686.89,0.00019178,2]
[379088979,1755121841401,-460.0,0.00019178,2]
[379088981,1755121841412,-460.0,0.00019178,2]
[379088983,1755121841422,-460.0,0.00019178,2]
[379088985,1755121841432,-792.44,0.00019178,2]
[379088987,1755121841442,-484.21,0.00019178,2]
[379088989,1755121841454,-460.0,0.00019178,2]
[379088991,1755121841464,-1199.46,0.00019178,2]
[379088993,1755121841475,-460.0,0.00019178,2]
[379088995,1755121841488,-460.0,0.00019178,2]
[379088997,1755121841498,-460.0,0.00019178,2]
[379088999,1755121841508,-460.0,0.00019178,2]
[379089001,1755121841518,-460.0,0.00019178,2]
[379089003,1755121841528,-460.0,0.00019178,2]
[379089005,1755121841538,-460.0,0.00019178,2]
[379089007,1755121841548,-460.0,0.00019178,2]
[379089009,1755121841558,-1234.64,0.00019178,2]
[379089011,1755121841568,-460.0,0.00019178,2]
[379089013,1755121841577,-460.0,0.00019178,2]
[379089015,1755121841591,-460.0,0.00019178,2]
[379089016,1755121841606,-460.0,0.00019178,2]
[379089018,1755121841623,-460.0,0.00019178,2]
[379089020,1755121841633,-460.0,0.00019178,2]
[379089022,1755121841643,-491.71,0.00019178,2]
[379089024,1755121841653,-460.0,0.00019178,2]
[379089026,1755121841663,-460.0,0.00019178,2]
[379089028,1755121841672,-782.51,0.00019178,2]
[379089030,1755121841682,-460.0,0.00019178,2]
[379089031,1755121841691,-460.0,0.00019178,2]
[379089033,1755121841701,-875.0,0.00019178,2]
[379089035,1755121841711,-460.0,0.00019178,2]
[379089036,1755121841721,-460.0,0.00019178,2]
[379089038,1755121841733,-460.0,0.00019178,2]
[379089040,1755121841743,-791.53,0.00019178,2]
[379089042,1755121841758,-460.0,0.00019178,2]
[379089043,1755121841767,-460.0,0.00019178,2]
[379089044,1755121841777,-530.68131931,0.00019178,2]
[379089045,1755121841788,-2026.54,0.00019178,2]
[379089046,1755121841798,-460.0,0.00019178,2]
[379089047,1755121841809,-460.0,0.00019178,2]
[379089049,1755121841819,-460.0,0.00019178,2]
[379089051,1755121841829,-460.0,0.00019178,2]
[379089053,1755121841839,-460.0,0.00019178,2]
[379089054,1755121841848,-460.0,0.00019178,2]
[379089055,1755121841860,-1849.19,0.00019178,2]
[379089056,1755121841873,-460.0,0.00019178,2]
[379089057,1755121841883,-824.94,0.00019178,2]
[379089058,1755121841894,-460.0,0.00019178,2]
[379089059,1755121841905,-460.0,0.00019178,2]
[379089060,1755121841917,-460.0,0.00019178,2]
[379089061,1755121841926,-460.0,0.00019178,2]
[379089062,1755121841936,-1341.6,0.00019178,2]
[379089063,1755121841947,-1238.88,0.00019178,2]
[379089064,1755121841957,-1116.31,0.00019178,2]
[379089065,1755121841967,-510.12,0.00019178,2]
[379089066,1755121841976,-460.0,0.00019178,2]
[379089067,1755121841987,-469.94,0.00019178,2]
[379089068,1755121841996,-460.0,0.00019178,2]
[379089069,1755121842006,-277.24497821,0.00019178,2]
[379089070,1755121842015,-460.0,0.00019178,2]
[379089071,1755121842025,-1279.19,0.00019178,2]
[379089072,1755121842034,-460.0,0.00019178,2]
[379089073,1755121842044,-482.11,0.00019178,2]
[379089074,1755121842054,-460.0,0.00019178,2]
[379089075,1755121842063,-460.0,0.00019178,2]
[379089076,1755121842072,-778.87,0.00019178,2]
[379089077,1755121842081,-460.0,0.00019178,2]
[379089078,1755121842091,-460.0,0.00019178,2]
[379089079,1755121842100,-460.0,0.00019178,2]
[379089080,1755121842110,-460.0,0.00019178,2]
[379089081,1755121842119,-460.0,0.00019178,2]
[379089082,1755121842128,-460.0,0.00019178,2]
[379089083,1755121842138,-460.0,0.00019178,2]
[379089084,1755121842147,-460.0,0.00019178,2]
[379089085,1755121842157,-460.0,0.00019178,2]
[379089086,1755121842167,-460.0,0.00019178,2]
[379089087,1755121842177,-460.0,0.00019178,2]
[379089088,1755121842187,-460.0,0.00019178,2]
[379089089,1755121842196,-460.0,0.00019178,2]
[379089090,1755121842206,-460.0,0.00019178,2]
[379089091,1755121842216,-460.0,0.00019178,2]
[379089092,1755121842226,-460.0,0.00019178,2]
[379089093,1755121842238,-460.0,0.00019178,2]
[379089094,1755121842247,-460.0,0.00019178,2]
[379089095,1755121842257,-460.0,0.00019178,2]
[379089096,1755121842266,-460.0,0.00019178,2]
[379089097,1755121842276,-578.78607371,0.00019178,2]
[379089098,1755121842285,-1040.27,0.00019178,2]
[379089099,1755121842295,-460.0,0.00019178,2]
[379089100,1755121842304,-460.0,0.00019178,2]
[379089101,1755121842314,-460.0,0.00019178,2]